fUST/lending_fUST_20250213
["ID","MTS","AMOUNT","RATE_DAILY","PERIOD"]
[352927413,1739437837939,-150.0,0.00013425,2]
[352927415,1739437837950,-150.0,0.00013428,2]
[352927417,1739437837960,-420.0,0.00013908,2]
[352927419,1739437837970,-196.0,0.00014,4]
[352927421,1739437837980,-196.0,0.00014,4]
[352927423,1739437837992,-196.0,0.00014,5]
[352927425,1739437838002,-196.0,0.00014,5]
[352927427,1739437838013,-188272.48561224,0.00014184,2]
[352927429,1739437838025,-29632.90903455,0.00014184,2]
[352927431,1739437838037,-10687.47323505,0.00014184,2]
[352927513,1739437840230,-396.0,0.00013428,2]
[352927515,1739437840240,-59.147,0.00014184,2]
[352927557,1739437842955,-489.4540973,0.00014184,2]
[352928274,1739439032262,-628.38707331,0.00010367,2]
[352928276,1739439032274,-2921.42292713,0.00010367,2]
[352928278,1739439032284,-2590.79424061,0.00010577,2]
[352928280,1739439032294,-400.0,0.00010685,2]
[352928283,1739439032305,-590.7154605,0.0001302,2]
[352928284,1739439032314,-500.0,0.00013408,2]
[352928285,1739439032324,-343.4589796,0.0001355,2]
[352928286,1739439032333,-300.0,0.00013572,2]
[352928287,1739439032345,-150.0,0.00013573,2]
[352928288,1739439032355,-1069.668,0.00013573,2]
[352928289,1739439032364,-396.0,0.00013573,2]
[352928290,1739439032374,-12912.1799372,0.00013886,2]
[352928291,1739439032384,-7571.67628984,0.00014,2]
[352928406,1739439043427,-10122.39086922,0.00014,2]
[352928408,1739439043437,-600.0,0.00014179,2]
[352928410,1739439043447,-454433.60913078,0.00014184,2]
[352928673,1739439046148,-8669.59449068,0.00014184,2]
[352928675,1739439046160,-651.71,0.00014184,2]
[352928679,1739439046202,-9847.099968,0.00014184,2]
[352928682,1739439046214,-1289.9000001,0.00014184,2]
[352930218,1739440232690,-2310.0,0.00010058,2]
[352930219,1739440232718,-595.40362506,0.00010058,2]
[352930220,1739440232735,-2418.70289534,0.0001016,2]
[352930222,1739440232752,-400.0,0.00010685,2]
[352930225,1739440232769,-165.76681782,0.00012441,5]
[352930227,1739440232785,-300.0,0.00012733,2]
[352930230,1739440232795,-6280.83632401,0.00012734,2]
[352930232,1739440232807,-1021.86804867,0.00012734,2]
[352930234,1739440232820,-17597.29562732,0.00012734,2]
[352930251,1739440232977,-500.0,0.00013408,2]
[352930254,1739440232996,-150.0,0.00013692,2]
[352930256,1739440233006,-153.0,0.000137,2]
[352930258,1739440233015,-153.0,0.000137,2]
[352930260,1739440233026,-435.5486941,0.000137,2]
[352930262,1739440233036,-13270.63763847,0.00013805,2]
[352930264,1739440233045,-153.0,0.000139,2]
[352930266,1739440233054,-153.0,0.000139,2]
[352930267,1739440233064,-420.0,0.00013968,2]
[352930269,1739440233074,-153.0,0.00013973,2]
[352930272,1739440233083,-153.0,0.00013973,2]
[352930274,1739440233093,-30871.1271935,0.0001399,2]
[352930276,1739440233103,-151.0,0.00013992,2]
[352930278,1739440233113,-217.0,0.00013999,10]
[352930280,1739440233123,-477.3905884,0.00013999,2]
[352930282,1739440233133,-200.0,0.00013999,2]
[352930284,1739440233142,-500.0,0.00013999,2]
[352930286,1739440233152,-500.0,0.00013999,2]
[352930288,1739440233163,-500.0,0.00013999,2]
[352930290,1739440233173,-500.0,0.00013999,2]
[352930292,1739440233183,-500.0,0.00013999,2]
[352930294,1739440233194,-500.0,0.00013999,2]
[352930296,1739440233203,-500.0,0.00013999,2]
[352930298,1739440233213,-500.0,0.00013999,2]
[352930299,1739440233223,-500.0,0.00013999,2]
[352930300,1739440233233,-500.0,0.00013999,2]
[352930301,1739440233242,-500.0,0.00013999,2]
[352930302,1739440233252,-500.0,0.00013999,2]
[352930305,1739440233262,-337.87219954,0.00013999,2]
[352930306,1739440233272,-500.0,0.00013999,2]
[352930308,1739440233281,-500.0,0.00013999,2]
[352930310,1739440233291,-500.0,0.00013999,2]
[352930312,1739440233300,-500.0,0.00013999,2]
[352930314,1739440233310,-500.0,0.00013999,2]
[352930316,1739440233319,-500.0,0.00013999,2]
[352930318,1739440233328,-500.0,0.00013999,2]
[352930320,1739440233338,-500.0,0.00013999,2]
[352930321,1739440233348,-500.0,0.00013999,2]
[352930323,1739440233358,-500.0,0.00013999,2]
[352930324,1739440233368,-500.0,0.00013999,2]
[352930325,1739440233378,-500.0,0.00013999,2]
[352930327,1739440233388,-500.0,0.00013999,2]
[352930329,1739440233397,-500.0,0.00013999,2]
[352930331,1739440233408,-250.0,0.00013999,2]
[352930333,1739440233417,-222.93723,0.00013999,2]
[352930335,1739440233428,-500.0,0.00013999,2]
[352930336,1739440233438,-650.0,0.00013999,2]
[352930338,1739440233448,-500.0,0.00013999,2]
[352930339,1739440233457,-456.16380709,0.00013999,2]
[352930340,1739440233467,-500.0,0.00013999,2]
[352930341,1739440233477,-500.0,0.00013999,2]
[352930342,1739440233487,-500.0,0.00013999,2]
[352930343,1739440233497,-346.84170544,0.00013999,2]
[352930344,1739440233507,-200.0,0.00013999,2]
[352930345,1739440233517,-500.0,0.00013999,2]
[352930346,1739440233526,-500.0,0.00013999,2]
[352930347,1739440233535,-500.0,0.00013999,2]
[352930348,1739440233545,-500.0,0.00013999,2]
[352930349,1739440233556,-500.0,0.00013999,2]
[352930350,1739440233566,-500.0,0.00013999,2]
[352930351,1739440233576,-500.0,0.00013999,2]
[352930352,1739440233586,-500.0,0.00013999,2]
[352930353,1739440233595,-500.0,0.00013999,2]
[352930354,1739440233606,-500.0,0.00013999,2]
[352930355,1739440233616,-500.0,0.00013999,2]
[352930356,1739440233627,-500.0,0.00013999,2]
[352930357,1739440233636,-650.0,0.00013999,2]
[352930358,1739440233647,-500.0,0.00013999,2]
[352930359,1739440233658,-636.61957979,0.00013999,2]
[352930360,1739440233668,-500.0,0.00013999,2]
[352930361,1739440233678,-500.0,0.00013999,2]
[352930362,1739440233688,-500.0,0.00013999,2]
[352930363,1739440233699,-500.0,0.00013999,2]
[352930364,1739440233708,-500.0,0.00013999,2]
[352930365,1739440233718,-457.4358628,0.00013999,2]
[352930366,1739440233728,-500.0,0.00013999,2]
[352930367,1739440233738,-190.439,0.00014,2]
[352930368,1739440233749,-153.0,0.00014,2]
[352930369,1739440233760,-306.0,0.00014,2]
[352930370,1739440233769,-711.6357211,0.00014,2]
[352930371,1739440233779,-153.0,0.00014,2]
[352930372,1739440233788,-309.1472928,0.00014,2]
[352930373,1739440233799,-1837.29779018,0.00014,2]
[352930374,1739440233809,-261278.36172808,0.00014,2]
[352930375,1739440233822,-46695.51843978,0.00014,2]
[352930376,1739440233832,-153.0,0.000141,2]
[352930377,1739440233842,-151.0,0.000141,2]
[352930378,1739440233855,-1837.29779018,0.000141,2]
[352930379,1739440233865,-600.0,0.00014179,2]
[352930380,1739440233875,-68976.12958362,0.00014184,2]
[352930381,1739440233886,-153.0,0.000142,2]
[352930382,1739440233897,-151.0,0.000142,2]
[352930383,1739440233908,-151.0,0.000142,2]
[352930384,1739440233918,-1837.29779018,0.000142,2]
[352930385,1739440233928,-6168.51440048,0.000143,2]
[352930386,1739440233940,-151.0,0.000143,2]
[352930387,1739440233950,-151.0,0.000143,2]
[352930388,1739440233960,-1837.29779018,0.000143,2]
[352930389,1739440233971,-601.67689935,0.00014327,2]
[352930390,1739440233982,-38050.18673364,0.00014399,2]
[352930391,1739440233992,-283.1326128,0.000144,5]
[352930392,1739440234002,-35005.57395135,0.000144,5]
[352930393,1739440234012,-630.49878949,0.000144,2]
[352930394,1739440234022,-630.49878949,0.000144,2]
[352930395,1739440234032,-630.49878949,0.000144,2]
[352930396,1739440234042,-630.49878949,0.000144,2]
[352930397,1739440234052,-630.49878949,0.000144,2]
[352930398,1739440234062,-630.49878949,0.000144,2]
[352930399,1739440234072,-630.49878949,0.000144,2]
[352930400,1739440234082,-630.49878949,0.000144,2]
[352930401,1739440234092,-630.49878949,0.000144,2]
[352930402,1739440234101,-630.49878949,0.000144,2]
[352930403,1739440234111,-630.49878949,0.000144,2]
[352930404,1739440234121,-630.49878949,0.000144,2]
[352930405,1739440234131,-630.49878949,0.000144,2]
[352930406,1739440234141,-630.49878949,0.000144,2]
[352930407,1739440234151,-630.49878949,0.000144,2]
[352930408,1739440234161,-630.49878949,0.000144,2]
[352930409,1739440234171,-630.49878949,0.000144,2]
[352930410,1739440234180,-630.49878949,0.000144,2]
[352930411,1739440234190,-630.49878949,0.000144,2]
[352930412,1739440234201,-630.49,0.000144,2]
[352930413,1739440234211,-1471.16384215,0.000144,2]
[352930414,1739440234221,-1471.16384215,0.000144,2]
[352930415,1739440234231,-1471.16384215,0.000144,2]
[352930416,1739440234241,-1471.16384215,0.000144,2]
[352930417,1739440234251,-1471.16384215,0.000144,2]
[352930418,1739440234259,-1471.16384215,0.000144,2]
[352930419,1739440234270,-1471.16384215,0.000144,2]
[352930420,1739440234284,-1471.16384215,0.000144,2]
[352930421,1739440234298,-1471.16384215,0.000144,2]
[352930422,1739440234309,-1471.16384215,0.000144,2]
[352930423,1739440234318,-1471.16384215,0.000144,2]
[352930424,1739440234328,-1471.16384215,0.000144,2]
[352930425,1739440234338,-1471.16384215,0.000144,2]
[352930426,1739440234348,-1471.16384215,0.000144,2]
[352930427,1739440234358,-1471.16384215,0.000144,2]
[352930428,1739440234368,-1471.16384215,0.000144,2]
[352930429,1739440234377,-1471.16384215,0.000144,2]
[352930430,1739440234387,-1471.16384215,0.000144,2]
[352930431,1739440234397,-1471.16384215,0.000144,2]
[352930432,1739440234408,-1471.16,0.000144,2]
[352930433,1739440234418,-151.0,0.000144,2]
[352930434,1739440234427,-1902.44590502,0.000144,2]
[352930435,1739440234436,-1837.29779018,0.000144,2]
[352930436,1739440234445,-500.0,0.00014473,2]
[352930437,1739440234455,-500.0,0.00014473,2]
[352930438,1739440234466,-500.0,0.00014473,2]
[352930439,1739440234475,-500.0,0.00014473,2]
[352930440,1739440234487,-374.91407546,0.00014498,2]
[352930441,1739440234497,-22846.39146488,0.00014499,2]
[352930442,1739440234506,-274.577871,0.00014499,2]
[352930443,1739440234516,-274.577871,0.00014499,2]
[352930444,1739440234526,-151.0,0.00014499,2]
[352930445,1739440234535,-151.0,0.00014499,2]
[352930446,1739440234545,-867606.91560397,0.000145,5]
[352930474,1739440238176,-151.0,0.00014499,2]
[352930475,1739440238186,-43550.59846029,0.000145,5]
[352930476,1739440238198,-212632.9147161,0.000145,5]
[352930477,1739440238210,-3682.81756739,0.000145,5]
[352930478,1739440238287,-5746.75974349,0.000145,5]
[352930894,1739440246465,-283.13261278,0.000145,5]
[352930895,1739440246476,-679.14738722,0.000145,5]
[352932035,1739441432731,-242.3522434,0.00010367,2]
[352932037,1739441432741,-400.0,0.00010685,2]
[352932039,1739441432754,-300.0,0.00012945,2]
[352932041,1739441432763,-24900.0,0.00012946,2]
[352932043,1739441432773,-433.81,0.00013,2]
[352932045,1739441432784,-500.0,0.00013,3]
[352932047,1739441432796,-510.00232658,0.00013408,2]
[352932049,1739441432806,-150.0,0.00013723,2]
[352932051,1739441432815,-150.0,0.00013723,2]
[352932054,1739441432825,-163.331825,0.0001392,5]
[352932057,1739441432835,-170.250237,0.0001392,5]
[352932061,1739441432845,-500.0,0.00014,2]
[352932064,1739441432855,-500.0,0.00014,3]
[352932067,1739441432865,-500.0,0.00014,3]
[352932070,1739441432874,-22197.76657654,0.00014142,5]
[352932073,1739441432884,-241.003,0.00014184,2]
[352932076,1739441432894,-420.0,0.00014197,2]
[352932079,1739441432904,-13270.63763847,0.00014236,2]
[352932082,1739441432914,-1712.2013145,0.000144,2]
[352932085,1739441432924,-27932.52507236,0.000144,2]
[352932088,1739441432933,-198.74009082,0.000144,2]
[352932091,1739441432944,-1651.24708222,0.000144,2]
[352932094,1739441432954,-4231.86259679,0.00014415,2]
[352932097,1739441432964,-156.55,0.00014441,2]
[352932100,1739441432973,-500.0,0.00014473,2]
[352932103,1739441432984,-500.0,0.00014473,2]
[352932106,1739441432993,-500.0,0.00014473,2]
[352932108,1739441433003,-513.01338429,0.00014473,2]
[352932110,1739441433013,-306.14860996,0.00014473,2]
[352932112,1739441433023,-417.85347584,0.00014473,2]
[352932114,1739441433032,-250.95459029,0.00014473,2]
[352932116,1739441433044,-500.0,0.00014473,2]
[352932118,1739441433053,-500.0,0.00014473,2]
[352932120,1739441433063,-374.94775073,0.00014498,2]
[352932122,1739441433074,-500.0,0.00014499,2]
[352932124,1739441433083,-370.20510396,0.00014499,2]
[352932126,1739441433094,-217.35153412,0.00014499,2]
[352932140,1739441433221,-500.0,0.00014499,2]
[352932142,1739441433234,-404.14577,0.00014499,2]
[352932145,1739441433245,-500.0,0.00014499,2]
[352932147,1739441433255,-500.0,0.00014499,2]
[352932149,1739441433264,-500.0,0.00014499,2]
[352932151,1739441433276,-500.0,0.00014499,2]
[352932153,1739441433286,-500.0,0.00014499,2]
[352932155,1739441433299,-500.0,0.00014499,2]
[352932157,1739441433309,-500.0,0.00014499,2]
[352932159,1739441433319,-500.0,0.00014499,2]
[352932161,1739441433329,-500.0,0.00014499,2]
[352932163,1739441433338,-381.63575623,0.00014499,2]
[352932164,1739441433349,-500.0,0.00014499,2]
[352932165,1739441433359,-500.0,0.00014499,2]
[352932166,1739441433369,-500.0,0.00014499,2]
[352932167,1739441433379,-500.0,0.00014499,2]
[352932168,1739441433388,-500.0,0.00014499,2]
[352932169,1739441433398,-621.44254004,0.00014499,2]
[352932170,1739441433408,-500.0,0.00014499,2]
[352932171,1739441433418,-500.0,0.00014499,2]
[352932172,1739441433428,-500.0,0.00014499,2]
[352932173,1739441433438,-500.0,0.00014499,2]
[352932174,1739441433448,-500.0,0.00014499,2]
[352932175,1739441433458,-500.0,0.00014499,2]
[352932176,1739441433469,-500.0,0.00014499,2]
[352932177,1739441433479,-500.0,0.00014499,2]
[352932178,1739441433489,-500.0,0.00014499,2]
[352932179,1739441433498,-500.0,0.00014499,2]
[352932180,1739441433508,-500.0,0.00014499,2]
[352932181,1739441433518,-500.0,0.00014499,2]
[352932182,1739441433529,-500.0,0.00014499,2]
[352932183,1739441433538,-500.0,0.00014499,2]
[352932184,1739441433552,-500.0,0.00014499,2]
[352932185,1739441433562,-500.0,0.00014499,2]
[352932187,1739441433572,-500.0,0.00014499,2]
[352932189,1739441433583,-500.0,0.00014499,2]
[352932191,1739441433594,-500.0,0.00014499,2]
[352932193,1739441433604,-500.0,0.00014499,2]
[352932195,1739441433614,-500.0,0.00014499,2]
[352932197,1739441433624,-500.0,0.00014499,2]
[352932199,1739441433634,-500.0,0.00014499,2]
[352932201,1739441433644,-500.0,0.00014499,2]
[352932203,1739441433655,-500.0,0.00014499,2]
[352932205,1739441433666,-500.0,0.00014499,2]
[352932208,1739441433677,-500.0,0.00014499,2]
[352932210,1739441433687,-500.0,0.00014499,2]
[352932212,1739441433698,-549.99999999,0.00014499,2]
[352932214,1739441433708,-500.0,0.00014499,2]
[352932216,1739441433719,-500.0,0.00014499,2]
[352932218,1739441433729,-500.0,0.00014499,2]
[352932220,1739441433740,-503.0,0.00014499,2]
[352932222,1739441433750,-17502.78697568,0.000145,5]
[352932224,1739441433761,-144122.33261062,0.000145,5]
[352932448,1739441438419,-313.49536159,0.000145,5]
[352932451,1739441438585,-212632.9147161,0.000145,5]
[352932529,1739441724094,174.8549503,0.00014,30]
[352932710,1739442632831,-5000.0,9.857e-05,2]
[352932712,1739442632842,-5000.0,9.957e-05,2]
[352932714,1739442632851,-300.0,0.00010679,2]
[352932716,1739442632861,-400.0,0.00010685,2]
[352932718,1739442632871,-420.0,0.00011739,2]
[352932720,1739442632882,-202.6953676,0.00012408,2]
[352932722,1739442632891,-587.0,0.00012904,2]
[352932724,1739442632901,-4774.3117583,0.00013028,2]
[352933303,1739442638570,-5874.737452,0.00013028,2]
[352933305,1739442638579,-500.0,0.00013408,2]
[352933307,1739442638588,-415.34,0.00013873,2]
[352933309,1739442638598,-164.587531,0.0001392,5]
[352933310,1739442638609,-13270.63763847,0.00013976,2]
[352933313,1739442638619,-263.724,0.00014184,2]
[352933315,1739442638628,-156.80250152,0.00014184,2]
[352933317,1739442638639,-823.0,0.00014185,2]
[352933319,1739442638648,-158.0,0.00014353,2]
[352933321,1739442638658,-158.0,0.00014353,2]
[352933323,1739442638667,-158.0,0.00014353,2]
[352933325,1739442638677,-158.0,0.00014353,2]
[352933327,1739442638687,-158.0,0.00014353,2]
[352933329,1739442638696,-158.0,0.00014353,2]
[352933331,1739442638706,-158.0,0.00014353,2]
[352933333,1739442638715,-158.0,0.00014353,2]
[352933335,1739442638725,-158.0,0.00014353,2]
[352933338,1739442638734,-158.0,0.00014353,2]
[352933340,1739442638744,-158.0,0.00014353,2]
[352933342,1739442638754,-158.0,0.00014353,2]
[352933344,1739442638763,-158.0,0.00014353,2]
[352933346,1739442638773,-163.17,0.00014353,2]
[352933348,1739442638783,-152.0,0.000144,2]
[352933350,1739442638792,-198.74009081,0.000144,2]
[352933352,1739442638802,-38050.18673364,0.000144,2]
[352933354,1739442638811,-1100.83138816,0.000144,2]
[352933356,1739442638820,-500.0,0.00014473,2]
[352933359,1739442638830,-500.0,0.00014473,2]
[352933360,1739442638839,-536.33274386,0.00014473,2]
[352933363,1739442638848,-500.0,0.00014473,2]
[352933365,1739442638858,-8751.39348784,0.000145,5]
[352933367,1739442638868,-138657.4311488,0.000145,5]
[352933369,1739442638884,-2920.83439201,0.000145,5]
[352933472,1739442640953,-187.13212446,0.00014355,2]
[352933473,1739442640963,-318.2626326,0.000145,5]
[352933593,1739442643651,-1447.06283213,0.000145,5]
[352933594,1739442643662,-8682.28192895,0.000145,5]
[352933595,1739442643673,-1195.69938602,0.000145,5]
[352933599,1739442643957,-12751.000001,0.000145,5]
[352934607,1739443442405,4511.0,0.000222,120]
[352934638,1739443662622,10000.0,0.000222,120]
[352934639,1739443671555,10000.0,0.000222,120]
[352934640,1739443678501,10000.0,0.000222,120]
[352934641,1739443684135,10000.0,0.000222,120]
[352934642,1739443692082,10000.0,0.000222,120]
[352934643,1739443697545,10000.0,0.000222,120]
[352934644,1739443703306,10000.0,0.000222,120]
[352934645,1739443709113,10000.0,0.000222,120]
[352934646,1739443716132,10000.0,0.000222,120]
[352934647,1739443728965,8523.0,0.000222,120]
[352934728,1739443832057,-1802.70952778,0.00010472,2]
[352934730,1739443832067,-400.0,0.00010685,2]
[352934732,1739443832077,-219.37619585,0.00013041,2]
[352934734,1739443832087,-345.96473332,0.0001314,2]
[352934736,1739443832099,-500.0,0.00013408,2]
[352934738,1739443832109,-300.0,0.00013843,2]
[352934740,1739443832119,-1982.0,0.00013844,2]
[352934742,1739443832128,-545.771,0.00013844,2]
[352934744,1739443832137,-2298.0,0.00013844,2]
[352934746,1739443832148,-13270.63763847,0.00014082,2]
[352934749,1739443832159,-600.0,0.00014179,2]
[352934768,1739443832274,-600.0,0.00014327,2]
[352934772,1739443832292,-305.757,0.00014327,2]
[352934774,1739443832302,-829.82073046,0.000144,2]
[352934776,1739443832311,-4292.3010039,0.000144,2]
[352934778,1739443832321,-500.0,0.00014473,2]
[352934780,1739443832330,-500.0,0.00014473,2]
[352934783,1739443832340,-500.0,0.00014473,2]
[352934786,1739443832349,-600.0,0.00014475,2]
[352934789,1739443832359,-43918.10312234,0.0001449,2]
[352934792,1739443832368,-151.0,0.00014491,2]
[352934795,1739443832378,-374.94775073,0.00014498,2]
[352934798,1739443832387,-151.88244004,0.00014498,2]
[352934801,1739443832397,-500.0,0.00014499,2]
[352934803,1739443832406,-500.0,0.00014499,2]
[352934805,1739443832416,-500.0,0.00014499,2]
[352934807,1739443832426,-500.0,0.00014499,2]
[352934809,1739443832436,-582.56053924,0.00014499,2]
[352934811,1739443832445,-357.20911773,0.00014499,2]
[352934813,1739443832455,-845.2298371,0.000145,5]
[352934815,1739443832465,-8751.39348784,0.000145,5]
[352934818,1739443832475,-203363.26058917,0.000145,5]
[352934820,1739443832487,-109612.07306012,0.000145,5]
[352934822,1739443832504,-406.271099,0.000145,5]
[352934823,1739443832519,-456.65,0.000145,5]
[352934854,1739443837717,-12994.166021,0.0001412,2]
[352934856,1739443837727,-422.61491855,0.000145,5]
[352934858,1739443837738,-137129.20782911,0.000145,5]
[352934863,1739443837771,-2387.29963517,0.000145,5]
[352934865,1739443837783,-3499.791812,0.000145,5]
[352934982,1739443839975,-1167.42,0.000145,5]
[352934987,1739443840028,-330.40146357,0.000145,5]
[352934990,1739443840040,-500.0,0.000145,5]
[352935553,1739443845867,-153.0,0.00013846,2]
[352935555,1739443845878,-99999.1557822,0.000145,5]
[352935557,1739443845891,-20474.40749551,0.000145,5]
[352935559,1739443845904,-16464.95029574,0.000145,5]
[352936994,1739443955515,2000.0,0.00022192,120]
[352936995,1739443955804,2000.0,0.00022192,120]
[352936996,1739443956133,2000.0,0.00022192,120]
[352936997,1739443958295,2000.0,0.00022192,120]
[352936998,1739443958586,2000.0,0.00022192,120]
[352936999,1739443958881,2000.0,0.00022192,120]
[352937000,1739443959170,2000.0,0.00022192,120]
[352937001,1739443959977,2000.0,0.00022192,120]
[352937002,1739443960279,2000.0,0.00022192,120]
[352937003,1739443960709,2000.0,0.00022192,120]
[352937004,1739443962220,2000.0,0.00022192,120]
[352937005,1739443962605,2000.0,0.00022192,120]
[352937006,1739443962920,2000.0,0.00022192,120]
[352937007,1739443963238,2000.0,0.00022192,120]
[352937008,1739443963538,2000.0,0.00022192,120]
[352937009,1739443963830,2000.0,0.00022192,120]
[352937010,1739443964124,2000.0,0.00022192,120]
[352937011,1739443964423,2000.0,0.00022192,120]
[352937012,1739443964718,2000.0,0.00022192,120]
[352937013,1739443965010,2000.0,0.00022192,120]
[352937015,1739443985664,2000.0,0.00022192,120]
[352937016,1739443985964,2000.0,0.00022192,120]
[352937017,1739443986363,2000.0,0.00022192,120]
[352937018,1739443986580,2000.0,0.00022192,120]
[352937019,1739443987189,2000.0,0.00022192,120]
[352937020,1739443987513,2000.0,0.00022192,120]
[352937021,1739443988369,2000.0,0.00022192,120]
[352937022,1739443988667,2000.0,0.00022192,120]
[352937023,1739443989210,2000.0,0.00022192,120]
[352937024,1739443989356,2000.0,0.00022192,120]
[352937025,1739443996769,2000.0,0.00022192,120]
[352937026,1739443997064,2000.0,0.00022192,120]
[352937027,1739443997361,2000.0,0.00022192,120]
[352937028,1739443997669,2000.0,0.00022192,120]
[352937029,1739443997965,2000.0,0.00022192,120]
[352937030,1739443998386,2000.0,0.00022192,120]
[352937031,1739443998569,2000.0,0.00022192,120]
[352937032,1739443998869,2000.0,0.00022192,120]
[352937033,1739443999675,2000.0,0.00022192,120]
[352937034,1739443999970,2000.0,0.00022192,120]
[352937035,1739444003651,2000.0,0.00022192,120]
[352937036,1739444003954,2000.0,0.00022192,120]
[352937037,1739444004761,2000.0,0.00022192,120]
[352937038,1739444005071,2000.0,0.00022192,120]
[352937039,1739444005492,2000.0,0.00022192,120]
[352937040,1739444005788,2000.0,0.00022192,120]
[352937041,1739444006284,2000.0,0.00022192,120]
[352937042,1739444006582,2000.0,0.00022192,120]
[352937043,1739444006993,2000.0,0.00022192,120]
[352937044,1739444007314,2000.0,0.00022192,120]
[352937046,1739444041901,2000.0,0.00014,120]
[352937047,1739444042207,2000.0,0.00014,120]
[352937048,1739444042504,2000.0,0.00014,120]
[352937049,1739444042830,2000.0,0.00014,120]
[352937050,1739444043130,2000.0,0.00014,120]
[352937051,1739444043677,2000.0,0.00014,120]
[352937052,1739444043979,2000.0,0.00014,120]
[352937053,1739444044272,2000.0,0.00014,120]
[352937054,1739444044589,2000.0,0.00014,120]
[352937055,1739444044868,2000.0,0.00014,120]
[352937056,1739444080164,500.0,0.000222,120]
[352937065,1739444121231,1000.0,0.00014,30]
[352937066,1739444121532,1000.0,0.00014,30]
[352937067,1739444121837,1000.0,0.00014,30]
[352937068,1739444122142,1000.0,0.00014,30]
[352937069,1739444122587,1000.0,0.00014,30]
[352937070,1739444123134,1000.0,0.00014,30]
[352937071,1739444123275,1000.0,0.00014,30]
[352937072,1739444123497,1000.0,0.00014,30]
[352937073,1739444124319,1000.0,0.00014,30]
[352937074,1739444124616,1000.0,0.00014,30]
[352937075,1739444131593,2000.0,0.00022192,120]
[352937076,1739444132506,2000.0,0.00022192,120]
[352937077,1739444132848,2000.0,0.00022192,120]
[352937078,1739444133336,2000.0,0.00022192,120]
[352937079,1739444133518,2000.0,0.00022192,120]
[352937080,1739444133808,2000.0,0.00022192,120]
[352937081,1739444134112,2000.0,0.00022192,120]
[352937082,1739444134403,2000.0,0.00022192,120]
[352937083,1739444134700,2000.0,0.00022192,120]
[352937084,1739444134976,2000.0,0.00022192,120]
[352937085,1739444166328,1000.0,0.00022192,120]
[352937086,1739444166620,1000.0,0.00022192,120]
[352937087,1739444167165,1000.0,0.00022192,120]
[352937088,1739444167610,1000.0,0.00022192,120]
[352937089,1739444167971,1000.0,0.00022192,120]
[352937090,1739444168173,1000.0,0.00022192,120]
[352937091,1739444168466,1000.0,0.00022192,120]
[352937092,1739444175710,835.0,0.00022192,120]
[352937112,1739444745444,500.0,0.00022192,120]
[352937113,1739444763748,500.0,0.00022192,120]
[352937114,1739444778504,500.0,0.00022192,120]
[352937115,1739444791350,500.0,0.00022192,120]
[352937116,1739444813901,500.0,0.00022192,120]
[352937117,1739444828967,500.0,0.00022192,120]
[352937129,1739444841418,512.19075775,0.00022192,120]
[352937134,1739444939659,3978.10988926,0.00022,120]